Cogmind - Beta 13 @@@ ROGUE MODE // 2024.04.01 @ 18:00:55 Player: Eusmilis Result: Destroyed by H-55 Commando with Gauss Rifle Performance ------------- Evolutions (2) 1000 Regions Visited (6) 1200 Robots Destroyed (23) 115 Value Destroyed (617) 617 Prototype IDs (1) 20 Alien Tech Used (0) 0 Bonus (360) 360 TOTAL SCORE: 3312 Bonus ------- Follower Combat Kills 60 Aligned with FarCom 300 Cogmind --------- Core Integrity 0/550 Matter 256/300 Energy 125/125 System Corruption 0% Temperature Cool (0) Movement Core (1550) Ox30 Location -8/Storage Parts ------- > --- POWER (3) -------- Light Ion Engine > --- PROPULSION (3) --- (None) > --- UTILITY (2) ------ Huge Storage Unit Light Armor Plating > --- WEAPON (3) ------- Small Laser Rocket Launcher > --- INVENTORY (25) --- ECM Suite Light Armor Plating Light Armor Plating Peak State ------------ > --- POWER ------------ Ion Engine Light Ion Engine Light Nuclear Core > --- PROPULSION ------- Aluminum Leg Aluminum Leg Carbon-fiber Leg > --- UTILITY ---------- Huge Storage Unit Trap Reconfigurator > --- WEAPON ----------- Beam Rifle Light Assault Rifle Heavy Assault Rifle > --- INVENTORY -------- Light Ion Engine ECM Suite Light Armor Plating Light Armor Plating Light Armor Plating Small Laser Beam Cannon Heavy Particle Cannon Heavy Particle Cannon Flak Cannon Grenade Launcher Rocket Launcher [Rating: 26] Favorites ----------- Power Light Nuclear Core Engine Light Ion Engine Power Core Light Nuclear Core Propulsion Wheel Leg Aluminum Leg Wheel Wheel Utility Huge Storage Unit Device Trap Reconfigurator Storage Huge Storage Unit Processor Signal Interpreter Protection Light Armor Plating Weapon Beam Rifle Energy Gun Beam Rifle Energy Cannon Heavy Particle Cannon Ballistic Gun Heavy Assault Rifle Ballistic Cannon Flak Cannon Launcher Rocket Launcher Build | -11 -10 -10 -10 -9 -8 -8 ------- Run | Yrd Mat Min Exi Min Mat Sto Slots Evolved 4 | . . . . . 4 . Power 2 | . . . . . 2 . Propulsion 1 | . . . . . 1 . Utility . | . . . . . . . Weapon 1 | . . . . . 1 . Parts Attached 32 | 5 5 4 1 1 11 5 Power 7 | 1 . 1 . 1 3 1 Engine 5 | 1 . . . 1 2 1 Core 2 | . . 1 . . 1 . Reactor . | . . . . . . . Propulsion 6 | 2 1 . . . 3 . Treads . | . . . . . . . Leg 3 | . . . . . 3 . Wheel 3 | 2 1 . . . . . Hover . | . . . . . . . Flight . | . . . . . . . Utility 6 | . 3 1 1 . . 1 Device 2 | . 1 . 1 . . . Storage 1 | . 1 . . . . . Processor 1 | . 1 . . . . . Hackware . | . . . . . . . Protection 2 | . . 1 . . . 1 Artifact . | . . . . . . . Weapon 13 | 2 1 2 . . 5 3 Energy Gun 4 | 1 1 1 . . . 1 Energy Cannon 3 | . . . . . 3 . Ballistic Gun 3 | 1 . 1 . . 1 . Ballistic Cannon 1 | . . . . . 1 . Launcher 2 | . . . . . . 2 Special Weapon . | . . . . . . . Impact Weapon . | . . . . . . . Slashing Weapon . | . . . . . . . Piercing Weapon . | . . . . . . . Special Melee Weapon . | . . . . . . . Unidentified Prototypes 1 | . . . 1 . . . Parts Lost 20 | . 2 1 . 2 14 1 Power 5 | . . 1 . 1 3 . Propulsion 5 | . 1 . . 1 3 . Utility 1 | . . . . . 1 . Weapon 9 | . 1 . . . 7 1 Highest Loss Streak 14 | . 2 1 . 2 14 1 To Critical Strikes 1 | . . . . . 1 . Average Slot Usage (%) 81 | . 79 91 100 85 90 17 Engine 7 | . 14 2 . 13 19 2 Core 7 | . . 10 14 . 4 . Leg 3 | . . . . . 21 . Wheel 17 | . 26 28 28 14 1 . Device 4 | . 5 . 2 14 8 . Storage 11 | . 6 14 14 14 9 9 Protection 5 | . . 7 11 . . 2 Energy Gun 11 | . 12 14 14 14 7 2 Ballistic Gun 12 | . 14 13 14 14 15 . Naked Turns . | . . . . . . . Heaviest Build 101 | 7 88 94 94 92 101 91 Greatest Support 35 | 20 20 20 20 20 35 3 Greatest Overweight (x) 32 | . 8 4 4 9 32 30 Average Overweight (x) 4 | . 1 4 4 8 3 26 Largest Inventory Capacity 25 | 5 25 25 25 25 25 25 Average Capacity 23 | 5 14 25 25 25 25 25 Most Carried 14 | 3 9 13 14 14 13 8 Average Carried 10 | 1 5 11 13 13 11 6 Final Capacity 25 | 5 25 25 25 25 25 25 Final Carried 14 | 3 9 13 14 14 8 3 Class Distribution -------------------- 46% | Mutant 37% | Scavenger-Mutant 16% | Scavenger-Skirmisher Dominant Class ---------------- Mutant | -10/Materials Mutant | -10/Mines Scavenger-Mutant | -10/Exiles Mutant | -9/Mines Scavenger-Skirmisher | -8/Materials Mutant | -8/Storage Resources | -11 -10 -10 -10 -9 -8 -8 ----------- Run | Yrd Mat Min Exi Min Mat Sto Matter Collected 670 | 250 79 71 . 34 205 31 Remotely . | . . . . . . . Salvage Created 642 | . 67 108 . 55 334 78 Parts 43 | . 5 10 . 4 18 6 Haulers Intercepted 1 | . . . . . . 1 Recyclers Shooed . | . . . . . . . Parts Field Recycled . | . . . . . . . Retrieved Matter . | . . . . . . . Parts Self-Destructed . | . . . . . . . Prevented . | . . . . . . . Kills | -11 -10 -10 -10 -9 -8 -8 ------- Run | Yrd Mat Min Exi Min Mat Sto Combat Hostiles Destroyed 20 | . 4 4 . 4 7 1 Guns 15 | . 2 4 . 4 5 . Cannons 2 | . . . . . 2 . AOE 3 | . 2 . . . . 1 Classes Destroyed 6 | . 2 . . . 1 3 Worker 1 | . . . . . . 1 Builder 1 | . . . . . . 1 Hauler 1 | . . . . . . 1 Swarmer 9 | . 3 2 . 4 . . Grunt 10 | . 1 2 . . 6 1 Sentry 1 | . . . . . 1 . Best Kill Streak 4 | . 3 2 . 4 4 4 Combat Bots Only 4 | . 3 2 . 4 4 1 Max Kills in Single Turn 2 | . 2 1 . 1 1 2 Gunslinging . | . . . . . . . Exploded 2 | . 2 . . . . 1 Melee . | . . . . . . . Uniques/NPCs Destroyed . | . . . . . . . Combat | -11 -10 -10 -10 -9 -8 -8 -------- Run | Yrd Mat Min Exi Min Mat Sto Hostile Shots Fired 272 | . 27 21 . 38 159 27 Missed 69 | . 10 6 . 12 36 5 Damage Taken 2738 | . 196 168 . 207 1854 313 Core 649 | . 19 27 . 43 454 106 Absorbed by Shields . | . . . . . . . Core Remaining (%) 82 | 100 . . . 64 . . Volleys Fired 60 | . 13 12 . 8 24 3 Largest 3 | . 2 2 . 2 3 1 Hottest 210 | . 60 60 . 79 210 30 Shots Fired 122 | . 15 23 . 16 65 3 Gun 109 | . 15 23 . 16 55 . Cannon 10 | . . . . . 10 . Launcher 3 | . . . . . . 3 Special . | . . . . . . . Kinetic 73 | . 13 12 . 8 40 . Thermal 44 | . . 11 . 8 25 . Explosive 3 | . . . . . . 3 Electromagnetic 2 | . 2 . . . . . Robot Hit Streak 6 | . 6 4 . 6 5 5 Robot Miss Streak 4 | . 1 2 . 3 4 . Penetration Max . | . . . . . . . Secondary Targets 2 | . . . . 1 1 . Max Gunslinging Chain 1 | . . . . 1 1 . Shots Hit Robots 75 | . 11 14 . 10 37 3 Core Hits 45 | . 6 7 . 4 19 9 Critical Kills . | . . . . . . . Critical Parts Destroyed . | . . . . . . . Critical Strikes . | . . . . . . . Melee Attacks . | . . . . . . . Impact . | . . . . . . . Slashing . | . . . . . . . Piercing . | . . . . . . . Sneak Attacks . | . . . . . . . Combat Hostiles . | . . . . . . . Follow-up Attacks . | . . . . . . . Damage Inflicted 1276 | . 207 181 . 148 495 245 Guns 865 | . 123 181 . 148 413 . Cannons 82 | . . . . . 82 . Explosions 329 | . 84 . . . . 245 Melee . | . . . . . . . Ramming . | . . . . . . . Kinetic 576 | . 101 100 . 75 300 . Thermal 433 | . 84 81 . 73 195 . Explosive 245 | . . . . . . 245 Electromagnetic 22 | . 22 . . . . . Impact . | . . . . . . . Slashing . | . . . . . . . Piercing . | . . . . . . . Highest Corruption . | . . . . . . . Average Corruption . | . . . . . . . Corruption Purged . | . . . . . . . Corruption Blocked . | . . . . . . . Overload Shots . | . . . . . . . Overflow Damage 24 | . . . . . . 24 Projectiles . | . . . . . . . Explosions 24 | . . . . . . 24 Melee . | . . . . . . . Knockbacks 1 | . . . . . 1 . Impact . | . . . . . . . Kinetic 1 | . . . . . 1 . Secondary . | . . . . . . . Self-Inflicted Damage 69 | . . . . . . 69 Shots 2 | . . . . . . 2 Rammed . | . . . . . . . Targets Rammed . | . . . . . . . Kicked . | . . . . . . . Crushed . | . . . . . . . Highest Temperature 545 | . 5 55 . 77 545 . Average Temperature 166 | . 5 37 . 49 208 . Received Heat Transfer 930 | . 78 60 . . 774 18 Effects 11 | . . . . . 11 . Shutdowns 7 | . . . . . 7 . Energy Bleed 1 | . . . . . 1 . Matter Decay 2 | . . . . . 2 . Short Circuit 1 | . . . . . 1 . Siege Activations . | . . . . . . . Robots Corrupted . | . . . . . . . Combat Hostiles . | . . . . . . . Parts Fried . | . . . . . . . Impact Corruptions . | . . . . . . . Robots Melted . | . . . . . . . Combat Hostiles . | . . . . . . . Parts Melted 2 | . . . . . 2 . Heat Transferred 854 | . 50 175 . 185 444 . Parts Sabotaged . | . . . . . . . Parts Stolen . | . . . . . . . Parts Stripped . | . . . . . . . Power Chain Reactions 1 | . 1 . . . . . Alert | -11 -10 -10 -10 -9 -8 -8 ------- Run | Yrd Mat Min Exi Min Mat Sto Peak Influence 213 | . 135 213 . 85 116 104 Initial 52 | . . 52 . . . . Average 56 | . 75 92 . 76 37 9 Maximum Alert Level 1 | . . 1 . . . . Low Security (%) 96 | 100 100 87 . 100 100 100 Level 1 3 | . . 12 . . . . Level 2 . | . . . . . . . Level 3 . | . . . . . . . Level 4 . | . . . . . . . Level 5 . | . . . . . . . High Security . | . . . . . . . Max Security . | . . . . . . . Squads Dispatched 4 | . 1 . . . 3 . Investigation 1 | . . . . . 1 . Extermination . | . . . . . . . Reinforcement 3 | . 1 . . . 2 . Assault . | . . . . . . . Garrison . | . . . . . . . Intercept . | . . . . . . . Searches Triggered . | . . . . . . . Construction Impeded . | . . . . . . . Haulers Reinforced . | . . . . . . . Active Scanning Responses . | . . . . . . . Cargo Convoy Interrupts . | . . . . . . . Stealth | -11 -10 -10 -10 -9 -8 -8 --------- Run | Yrd Mat Min Exi Min Mat Sto Distress Signals . | . . . . . . . Communications Jammed . | . . . . . . . Distress Signals . | . . . . . . . Times Spotted 35 | . 10 8 . 4 11 2 Peak Tracking Total 6 | . 6 3 . 4 4 1 Tactical Retreats . | . . . . . . . Traps | -11 -10 -10 -10 -9 -8 -8 ------- Run | Yrd Mat Min Exi Min Mat Sto Traps Triggered 1 | . . . . . 1 . Indirectly . | . . . . . . . Trap Hack Attempts . | . . . . . . . Triggered . | . . . . . . . Disarmed . | . . . . . . . Reprogrammed . | . . . . . . . Reused . | . . . . . . . Traps Extracted . | . . . . . . . Installed . | . . . . . . . Triggered . | . . . . . . . Machines | -11 -10 -10 -10 -9 -8 -8 ---------- Run | Yrd Mat Min Exi Min Mat Sto Machines Disabled 4 | . . 1 . . . 3 Max in Single Turn 1 | . . . . . . 1 Machines Repaired . | . . . . . . . Machines Dismantled . | . . . . . . . Machines Sabotaged . | . . . . . . . Overloaded Fab Kills . | . . . . . . . Hacking | -11 -10 -10 -10 -9 -8 -8 --------- Run | Yrd Mat Min Exi Min Mat Sto Machines Accessed 7 | . 4 . 1 . 2 . Terminals 5 | . 3 . . . 2 . Fabricators . | . . . . . . . Repair Stations . | . . . . . . . Recycling Units 1 | . 1 . . . . . Scanalyzers . | . . . . . . . Garrison Access . | . . . . . . . Total Hacks 34 | . 9 . 23 . 2 . Successful 28 | . 4 . 23 . 1 . Failed 6 | . 5 . . . 1 . Catastrophic . | . . . . . . . Database Lockouts . | . . . . . . . Manual 1 | . . . 1 . . . Terminals 8 | . 6 . . . 2 . Fabricators . | . . . . . . . Repair Stations . | . . . . . . . Recycling Units 3 | . 3 . . . . . Scanalyzers . | . . . . . . . Garrison Access . | . . . . . . . Terminal Hacks 27 | . 3 . 23 . 1 . Record 26 | . 3 . 23 . . . Transport Status 1 | . . . . . 1 . Fabricator Hacks . | . . . . . . . Repair Station Hacks . | . . . . . . . Recycling Unit Hacks 1 | . 1 . . . . . Report Inventory 1 | . 1 . . . . . Scanalyzer . | . . . . . . . Garrison Access Hacks . | . . . . . . . Unauthorized Hacks . | . . . . . . . Terminals . | . . . . . . . Fabricators . | . . . . . . . Repair Stations . | . . . . . . . Recycling Units . | . . . . . . . Scanalyzers . | . . . . . . . Garrison Access . | . . . . . . . Data Cores Recovered . | . . . . . . . Used . | . . . . . . . Hacking Detections 4 | . 2 . . . 2 . Full Trace Events . | . . . . . . . Feedback Events . | . . . . . . . Feedback Blocked . | . . . . . . . Robot Schematics Acquired . | . . . . . . . Robots Built . | . . . . . . . Authchips . | . . . . . . . Time . | . . . . . . . Total Robot Build Rating . | . . . . . . . Part Schematics Acquired . | . . . . . . . Parts Built . | . . . . . . . Authchips . | . . . . . . . Time . | . . . . . . . Total Part Build Rating . | . . . . . . . Parts Repaired . | . . . . . . . Time . | . . . . . . . Parts Recycled . | . . . . . . . Recycled Matter . | . . . . . . . Retrieved Matter . | . . . . . . . Retrieved Components . | . . . . . . . Parts Scanalyzed . | . . . . . . . Part Schematics Acquired . | . . . . . . . Parts Damaged . | . . . . . . . Bothacking | -11 -10 -10 -10 -9 -8 -8 ------------ Run | Yrd Mat Min Exi Min Mat Sto Used RIF Installer . | . . . . . . . Robots Hacked . | . . . . . . . Non-combat . | . . . . . . . Combat . | . . . . . . . Robot Hacks Applied . | . . . . . . . Relay Couplers Released . | . . . . . . . Fabnet Peak Effective % . | . . . . . . . Robots Rewired . | . . . . . . . Allies Hacked . | . . . . . . . Hacks Repelled . | . . . . . . . Allies | -11 -10 -10 -10 -9 -8 -8 -------- Run | Yrd Mat Min Exi Min Mat Sto Total Allies 2 | . . 2 . . . . Largest Group 2 | . . 2 2 . . . Highest-Rated Group 47 | . . 47 47 . . . Highest-Rated Ally 31 | . . 31 31 . . . Total Orders . | . . . . . . . Ally Attacks 9 | . . 9 . . . . Total Damage 139 | . . 139 . . . . Kills 2 | . . 2 . . . . Allies Corrupted . | . . . . . . . Allies Melted . | . . . . . . . Intel | -11 -10 -10 -10 -9 -8 -8 ------- Run | Yrd Mat Min Exi Min Mat Sto Robot Analysis Total . | . . . . . . . Derelict Logs Recovered 3 | . . 2 . 1 . . Drone Launches . | . . . . . . . Drone Recoveries . | . . . . . . . Exploration | -11 -10 -10 -10 -9 -8 -8 ------------- Run | Yrd Mat Min Exi Min Mat Sto Turns Passed 3387 | 57 220 657 939 423 622 469 Spaces Moved 1723 | 65 177 419 670 184 175 33 Core 53 | 16 . . . . 4 33 Treads . | . . . . . . . Legs 142 | . . . . . 142 . Wheels 1528 | 49 177 419 670 184 29 . Hover . | . . . . . . . Flight . | . . . . . . . Fastest Speed 50 | 50 80 140 140 140 215 1350 Average Speed 179 | 72 98 140 140 213 284 1392 Slowest Speed 1650 | 80 200 140 140 215 1650 1550 Overloaded Moves . | . . . . . . . Propulsion Burnouts . | . . . . . . . Robots Hopped . | . . . . . . . Cave-ins Triggered . | . . . . . . . Exploration Rate (%) 42 | 6 46 90 92 31 14 17 Regions Visited 6 Branch Regions 4 Pre-discovered Areas 4 | . . 2 1 1 . . Known Exits Taken . | . . . . . . . Unknown Exits Taken 6 | 1 1 1 1 1 1 . Scrap Searched 2 | . . . . 2 . . Spaces Dug . | . . . . . . . Terrain Destroyed 35 | . 2 . . . 4 29 Melee . | . . . . . . . Projectile 4 | . . . . . 4 . AOE 31 | . 2 . . . . 29 Terrain Rammed . | . . . . . . . Walls Destroyed . | . . . . . . . Machines Disabled . | . . . . . . . Actions | -11 -10 -10 -10 -9 -8 -8 --------- Run | Yrd Mat Min Exi Min Mat Sto Total 1917 | 72 206 465 671 198 264 41 Wait 84 | . 4 25 . 5 50 . Move 1717 | 64 176 418 669 183 174 33 Hop . | . . . . . . . Pick Up 17 | 3 6 4 . 1 3 . Fast Attach 16 | 5 4 4 1 . 2 . Attach 16 | . 1 . . 1 9 5 Detach 2 | . 1 . 1 . . . Swap . | . . . . . . . Drop 5 | . 1 2 . . 2 . Fire 60 | . 13 12 . 8 24 3 Melee . | . . . . . . . Ram . | . . . . . . . Kick . | . . . . . . . Crush . | . . . . . . . Escape Stasis . | . . . . . . . Rewire . | . . . . . . . Trap . | . . . . . . . Miscellaneous . | . . . . . . . Route ------- -11/Scrapyard -10/Materials -10/Mines -10/Exiles (discovered 2 exits: *Min x2) -9/Mines (discovered 2 exits: *Mat x2) -8/Materials -8/Storage History --------- Turn | Location | Event 2 | -11/Scrapyard | Met Revision 17 50 | -11/Scrapyard | Discovered new exit (range 8) 58 | -11/Scrapyard | Entered Materials 258 | -10/Materials | Discovered new exit (range 13) 278 | -10/Materials | Entered Mines 308 | -10/Mines | Build established: Mutant 593 | -10/Mines | Joined a pair of Derelicts in attacking an 0b10 outpost 920 | -10/Mines | Deemed a non-threat by the Exiles lab entrance 921 | -10/Mines | Discovered new exit (range 5) 935 | -10/Mines | Entered Exiles 935 | -10/Exiles | Accompanied by 2 allies 940 | -10/Exiles | Build established: Scavenger-Mutant 959 | -10/Exiles | Discovered new exit (range 15) 965 | -10/Exiles | Led the pair of lost Derelicts to a safe place 980 | -10/Exiles | Met 8R-AWN 1008 | -10/Exiles | Met EX-HEX 1067 | -10/Exiles | Met EX-DEC 1117 | -10/Exiles | Learned location of Zion (-7) 1162 | -10/Exiles | Discovered new exit (range 12) 1298 | -10/Exiles | Visited The Gauntlet 1521 | -10/Exiles | Met EX-BIN 1619 | -10/Exiles | Aligned with FarCom system 1620 | -10/Exiles | Given EX-Vault access code 1718 | -10/Exiles | Opened EX-Vault 1727 | -10/Exiles | Found Prototype Device 1727 | -10/Exiles | Identified Trap Reconfigurator 1759 | -10/Exiles | Warned to stay clear of 0b10 Research branches 1874 | -10/Exiles | Left Exiles lab with Trap Reconfigurator 1874 | -10/Exiles | Entered Mines 1876 | -9/Mines | Discovered new exit (range 10) 2117 | -9/Mines | Discovered new exit (range 8) 2124 | -9/Mines | Received a Rocket Launcher from a helpful Derelict 2190 | -9/Mines | Build established: Mutant 2234 | -9/Mines | Found a hidden stash of uninstalled traps 2297 | -9/Mines | Entered Materials 2297 | -8/Materials | Evolved 4 slots: Power x2, Propulsion x1, Weapon x1 2598 | -8/Materials | Build established: Scavenger-Skirmisher 2745 | -8/Materials | Discovered new exit (range 6) 2889 | -8/Materials | Core integrity fell below 50% 2919 | -8/Materials | Core integrity fell below 20% 2919 | -8/Materials | Entered Storage 2947 | -8/Storage | Lost 14 parts (3p3n1u7w) 3133 | -8/Storage | Build established: Mutant 3388 | -8/Storage | Destroyed by H-55 Commando with Gauss Rifle Last Messages --------------- U-05 Engineer lays Concrete. K-01 Serf collects debris. U-05 Engineer lays Concrete. K-01 Serf collects debris. U-05 Engineer lays Concrete. Slug penetrates Wall. U-05 Engineer lays Concrete. K-01 Serf collects debris. U-05 Engineer lays Concrete. Slug penetrates Wall. U-05 Engineer lays Concrete. K-01 Serf collects debris. Slug penetrates Wall. U-05 Engineer lays Concrete. U-05 Engineer builds a Wall. U-05 Engineer lays Concrete. Wall collapses. K-01 Serf collects debris. U-05 Engineer lays Concrete. Penetrated by Slug. Map ----- +----------------------------------------------------+ | ???????????????????????????????????????????? | | ???????????????????????????????????????????? | | ???????????????????????????????????????????? | | ???????????????????????????????????????????? | | ???????????????????????????????????????????? | | ???????????????????????????????????????????? | | ???????????????????????????????????????????? | | ???????????????????????????????????????????? | | ???????????????????????????????????????????? | | ???????????????????????????????????????????? | | ??????????????????? a?????????????????????? | | ??????????????????? #????????????????????? | | ??????????????????? #????????????????????? | | ??????????????????? T????????????????????? | | ??????????????????? #????????????????????? | | ??????????????????? ^ #????????????????????? | | ??????????Y???????? #????????????????????? | | ??????????????????# #???####?????????????? | | ??????????????????# #? #?????????????? | | ??????????????????# # #?????????????? | | ??????????????????# # #?????????????? | | ??????????????????# # #?? ??????????? | | ??????????????????# # #? ??????????? | | ??????????????????# # # #?????????? | | ?????????????????## # + o?????????? | | ??????????????#### @ r r#?????????????? | | ??????????????#""" #?????????????? | | ????????????###"T" #?????????????? | | ????????????# %# #?????????????? | | ???????????## u # #?????????????? | | ???????????## # #?????????????? | | ???????????# k # #####?????????????? | | ???????????# # ##??????w??????????? | | ???????????## ###??????????????????? | | ???????????# u##???????????????????? | | #########??## ##???????????????????? | | # ####### #+###;##???????????????????? | | # # k #????????????????????? | | # + h#????????????????????? | | # # +????????????????????? | | # # ###### #????????????????????? | | # + #????# #????????????????????? | | # # #????+ #????????????????????? | | # # #????# #????????????????????? | | # # #????# #????????????????????? | | # # #????/ #????????????????????? | | # # #????# #????????????????????? | | #############????? #????????????????????? | | ??????????????????? ????????????????????? | | ???????????????????##+#????????????????????? | +----------------------------------------------------+ Best States ------------- Heat Dissipation 31 Energy Generation 24 Energy Capacity 335 Matter Stores 300 Matter Capacity 300 Sight Range 16 Terrain Scan Density 10 ECM Strength 1 Armor Coverage 150 Evasion (%) 50 Item Schematics ----------------- None Robot Schematics ------------------ None Fabricated ------------ Nothing Alien Tech Used ----------------- None Achievements -------------- Loot Pinata Tourist Challenges ------------ None Game ------ Seed ForceSwordGenerator Manual? 0 Play Time 00:35:15 Cumulative 1.6 hours Start 2024.04.01 @ 11:11:39 End 2024.04.01 @ 18:00:55 Sessions 3 Manual Loads 0 Difficulty Rogue Special Mode None Game No. 3 Rogue 3 Adventurer 0 Explorer 0 Win Type - Total 0 Types 0/0/0/0/0/0/0/0/0 Lore% 6 Gallery% 4 Achievement% 5 Wizard Run 0 Options --------- Layout 1 ASCII 0 Keyboard 0 Movement Numpad Keybinds 0 Fullscreen 2 Font 32/SmallcapsGlow Map View 50x35 Zoom Use 0% Tactical HUD 0 Map Filters NONE Filters NONE Steam 0 RUN: 9674317b-2956-49f4-aa46-0faaa2dbab70